[Event "SixDays Budapest March GM B 2025"]
[Site "Budapest"]
[Date "2025.03.26"]
[Round "4.1"]
[White "Pap, Gyula"]
[Black "Sklokin, Sergey"]
[Result "1/2-1/2"]
[Annotator "TA"]
[ECO "B15"]
[WhiteElo "2475"]
[BlackElo "2338"]
[PlyCount "31"]
[EventDate "2025.03.23"]
[EventCountry "HUN"]
[SourceTitle "playchess.com"]
[Source "ChessBase"]
[SourceQuality "1"]
[TimeControl "5400+30"]

{[%evp 16,31,14,20,20,0,0,14,0,0,8,0,13,0,0,0,11,0]} 1. e4 {[%emt 0:04:36]} c6 {[%emt 0:00:06]} 2. d4 {[%emt 0:00:40]} d5 {[%emt 0:00:07]} 3. Nd2 {[%emt 0:00:15]} dxe4 {[%emt 0:00:06]} 4. Nxe4 {[%emt 0:00:05]} Nf6 {[%emt 0:00:10]} 5. Nxf6+ {[%emt 0:00:18]} exf6 {[%emt 0:00:07]} 6. Bc4 {[%emt 0:02:04]} Bd6 {[%emt 0:04:18]} 7. Qe2+ {[%emt 0:00:47]} Qe7 {[%emt 0:02:20]} 8. Qxe7+ {[%emt 0:00:53]} Kxe7 {[%emt 0:00:56]} 9. Ne2 {[%emt 0:00:49] The position is equal.} Re8 {[%emt 0:03:52] B15: Caro-Kann: 3 Nc3: 3...g6 and 3...dxe4 4 Nxe4 Nf6 5 Nxf6+ exf6.} 10. Bf4 {[%emt 0:00:47]} Bxf4 {[%emt 0:11:42]} 11. Nxf4 {[%emt 0:00:09]} Kf8+ {[%emt 0:01:58]} 12. Kd2 {[%emt 0:01:57]} Rd8 $146 {[%emt 0:10:15]} (12... Bf5 13. c3 Nd7 14. Rae1 Nb6 15. Bd3 Bg6 16. Rxe8+ Rxe8 17. Re1 Rd8 18. Nxg6+ hxg6 19. Kc2 Nd5 20. g3 Nc7 21. a3 g5 22. Bc4 Nd5 {0-1 Mazi,L (2340)-Matnadze,A (2421) EU-ch qual Online 2020 (4)}) 13. Ke3 {[%emt 0:01:38]} Re8+ {[%emt 0:05:32]} 14. Kd2 {[%emt 0:00:21]} Rd8 {[%emt 0:00:06]} 15. Ke3 {[%emt 0:00:05]} Re8+ {[%emt 0:00:06]} 16. Kd2 {[%emt 0:00:05] Not much happened in this game.   Weighted Error Value: White=0.05 (flawless) /Black=0.02 (flawless)   OK:         	White=3     	Black=5} 1/2-1/2

[Event "SixDays Budapest March GM B 2025"]
[Site "Budapest"]
[Date "2025.03.26"]
[Round "4.2"]
[White "Mayank Chakraborty"]
[Black "Sandoval Mercado, Carlos"]
[Result "1/2-1/2"]
[Annotator "TA"]
[ECO "B40"]
[WhiteElo "2444"]
[BlackElo "2383"]
[PlyCount "49"]
[EventDate "2025.03.23"]
[EventCountry "HUN"]
[SourceTitle "playchess.com"]
[Source "ChessBase"]
[SourceQuality "1"]
[TimeControl "5400+30"]

{[%evp 9,49,14,31,23,12,23,16,0,0,-22,-21,-21,-14,-30,-39,-31,-34,-95,-54,-47,-48,-49,-52,-62,-49,-70,-71,-68,-60,-104,-90,-83,-89,-105,-113,-111,-109,-89,-86,-154,-4,0]} 1. e4 {[%emt 0:00:03]} c5 {[%emt 0:00:16]} 2. Nf3 {[%emt 0:00:02]} e6 {[%emt 0:01:03]} 3. b3 {[%emt 0:00:01]} Nc6 {[%emt 0:01:45]} 4. Bb2 {[%emt 0:00:08]} b6 {[%emt 0:00:06]} 5. g3 {[%emt 0:06:39]} Bb7 {[%emt 0:01:22]} 6. Bg2 {[%emt 0:00:06] B40: Sicilian: 2...e6, Unusual lines.} d5 {[%emt 0:00:25]} 7. exd5 {[%emt 0:00:34]} Qxd5 {[%emt 0:00:33]} 8. Nc3 {[%emt 0:02:21]} Qd7 {[%emt 0:01:32]} 9. Ne4 $146 {[%emt 0:01:11]} (9. O-O Nf6 10. Re1 Be7 11. d3 O-O 12. Ne4 Nd4 13. Ne5 Qc7 14. f4 Rad8 15. Bxd4 cxd4 16. Nxf6+ Bxf6 17. Bxb7 Qxb7 {0-1 Hobson,K (2130)-Mikhalevski,V (2524) Hastings Masters op 97th 2023 (8)}) 9... Nh6 {[%emt 0:03:58][%cal Bg8h6,Bh6f5,Bf5d4][%mdl 32]} 10. O-O {[%emt 0:01:54]} Nf5 {[%emt 0:00:07]} 11. Ne5 {[%emt 0:06:40]} Nxe5 {[%emt 0:03:14]} 12. Bxe5 {[%emt 0:00:06]} Be7 {[%emt 0:00:16]} 13. Qg4 {[%emt 0:14:58]} ({Better is} 13. d3 $15) 13... O-O {[%emt 0:03:22]} 14. d3 {[%emt 0:08:18]} f6 {[%emt 0:05:07]} 15. Bb2 {[%emt 0:01:32]} Nd4 {[%emt 0:00:06] [#]} 16. Qd1 {[%emt 0:05:50]} Rad8 {[%emt 0:03:43]} 17. a4 {[%emt 0:01:23]} f5 {[%emt 0:09:16]} 18. Bxd4 {[%emt 0:04:04]} fxe4 {[%emt 0:14:06]} 19. Bc3 {[%emt 0:07:08]} exd3 {[%emt 0:00:59]} 20. Bxb7 {[%emt 0:00:17]} Qxb7 {[%emt 0:00:03]} 21. Qg4 {[%emt 0:01:06][%csl Gc3][%cal Rg4g7] Prevents Qe4.} Bf6 {[%emt 0:00:04]} ({Worse is} 21... dxc2 22. Qxg7#) 22. Qxe6+ {[%emt 0:09:35]} Kh8 {[%emt 0:01:13]} 23. Bxf6 {[%emt 0:00:31]} Rxf6 {[%emt 0:00:08]} 24. Qe5 {[%emt 0:02:00] [#]} (24. Qe3 $142) 24... dxc2 {[%emt 0:10:43]} (24... d2 $1 $17 {...Rf7 is the strong threat.} 25. Rad1 Qf3) 25. Qe2 $1 {[%emt 0:02:32] Weighted Error Value: White=0.17 (very precise) /Black=0.12 (very precise)   Mistake:       	White=2     	Black=1      Inaccurate:     	White=1     	Black=1      OK:         	White=7     	Black=9      Best:        	---       	Black=2      Strong:       	White=1     	---} 1/2-1/2

[Event "SixDays Budapest March GM B 2025"]
[Site "Budapest"]
[Date "2025.03.26"]
[Round "4.3"]
[White "Baasansuren, Erdene"]
[Black "Li, Wenxiang"]
[Result "1/2-1/2"]
[Annotator "TA"]
[ECO "D11"]
[WhiteElo "2394"]
[BlackElo "2260"]
[PlyCount "92"]
[EventDate "2025.03.23"]
[EventCountry "HUN"]
[SourceTitle "playchess.com"]
[Source "ChessBase"]
[SourceQuality "1"]
[TimeControl "5400+30"]

{[%evp 10,91,5,9,12,11,12,15,19,2,23,16,11,6,8,0,0,0,0,0,11,-8,0,0,0,0,0,0,0,0,0,0,0,-26,0,0,0,-35,-25,-49,-47,-45,-31,-64,-11,-9,14,0,32,18,40,19,39,0,0,0,0,-179,0,-35,-18,-33,-26,-22,-26,-32,-27,-25,0,0,9,0,0,0,0,0,0,0,0,0,0,0,0,0]} 1. d4 {[%emt 0:02:58]} d5 {[%emt 0:01:08]} 2. c4 {[%emt 0:00:06]} c6 {[%emt 0:00:05]} 3. Nf3 {[%emt 0:00:05]} Nf6 {[%emt 0:00:06]} 4. Qc2 {[%emt 0:00:08]} dxc4 {[%emt 0:00:12]} 5. Qxc4 {[%emt 0:00:08]} Bg4 {[%emt 0:00:08]} 6. Nbd2 {[%emt 0:00:08]} Nbd7 {[%emt 0:00:24] D23: Queen's Gambit Accepted: 3 Nf3 Nf6 sidelines.} 7. g3 {[%emt 0:01:41]} e6 {[%emt 0:01:09]} 8. Bg2 {[%emt 0:00:12]} Be7 {[%emt 0:00:13]} 9. O-O {[%emt 0:00:33]} O-O {[%emt 0:00:04]} 10. Qb3 {[%emt 0:00:29]} Qb6 {[%emt 0:00:06]} 11. Nc4 {[%emt 0:00:15]} Qa6 {[%emt 0:00:02]} 12. Bg5 {[%emt 0:00:26]} h6 {[%emt 0:03:54]} 13. Bxf6 {[%emt 0:02:55]} Bxf6 {[%emt 0:05:53]} 14. e3 {[%emt 0:08:28]} Rab8 {[%emt 0:06:31]} 15. Rfc1 {[%emt 0:29:55][%cal Bf1c1,Bc1c4,Bc4a4][%mdl 32]} c5 $146 {[%emt 0:12:31]} (15... Bxf3 16. Bxf3 c5 17. Rd1 cxd4 18. exd4 Rfd8 19. a4 Nb6 20. Nxb6 Qxb6 21. Qxb6 axb6 {½-½ Ni,H (2670)-Ter Sahakyan,S (2553) PRO League KO Stage rapid 2018 (4)}) 16. Nfe5 {[%emt 0:02:21]} Bxe5 {[%emt 0:03:02]} 17. Nxe5 {[%emt 0:00:40]} Nxe5 {[%emt 0:00:09]} 18. dxe5 {[%emt 0:00:05]} b6 {[%emt 0:03:00]} 19. Rc4 {[%emt 0:03:19]} Bf5 {[%emt 0:10:20]} 20. Ra4 {[%emt 0:19:00]} Qe2 {[%emt 0:00:21]} 21. Bf1 {[%emt 0:00:36]} Qf3 {[%emt 0:01:22] [#]} 22. Bg2 {[%emt 0:00:20]} (22. Rxa7 $2 Be4 23. h4 Qh1#) 22... Qe2 {[%emt 0:00:40]} 23. Bf1 {[%emt 0:01:14]} Qh5 {[%emt 0:04:11] Counterplay White} 24. Rxa7 {[%emt 0:09:19]} Rfd8 $1 {[%emt 0:03:31]} 25. Ra4 {[%emt 0:03:44]} Rd2 {[%emt 0:03:00][%mdl 1024] Black attacks Black has compensation.} 26. Rh4 {[%emt 0:00:03]} Qg5 {[%emt 0:06:07]} (26... Qf3 $15 27. Rf4 Qc6) 27. Rc4 $11 {[%emt 0:01:31]} Qd8 {[%emt 0:04:40]} 28. Re1 {[%emt 0:06:29]} Qc7 {[%emt 0:00:58]} 29. e4 {[%emt 0:01:04]} Bg4 {[%emt 0:02:49]} (29... Qxe5 $2 30. Qe3 (30. exf5 $2 Qxe1 31. Qf3 Rd1 $19) 30... Rxb2 31. exf5 Qxf5 32. Rf4 $18) 30. Qc3 {[%emt 0:05:22]} Rbd8 {[%emt 0:01:32]} 31. b4 {[%emt 0:00:36][%cal Bb2b4,Bb4c5][%mdl 32]} Rxa2 {[%emt 0:00:58]} 32. bxc5 {[%emt 0:00:22] aiming for Qb3.} Rdd2 {[%emt 0:01:34] [#] and ...b5 would now be decisive} 33. f3 $2 {[%emt 0:00:34]} (33. h3 $11 {and White is okay.}) 33... Bh5 $2 {[%emt 0:00:55]} (33... Bh3 $19 34. Bxh3 b5) 34. Qe3 {[%emt 0:01:49]} (34. Ra1 $5) 34... Qxe5 {[%emt 0:05:37]} 35. Re2 {[%emt 0:00:18] Successful Defense White} (35. cxb6 $2 {is the wrong capture.} Rxh2 36. f4 (36. Rc8+ $2 Kh7 $19) 36... Qb2 $19) (35. Be2 {seems wilder.} b5 36. Rcc1 b4 37. c6) 35... Rxe2 {[%emt 0:02:09]} 36. Bxe2 {[%emt 0:00:01]} bxc5 {[%emt 0:02:32]} 37. Kf2 {[%emt 0:00:07]} Qb2 {[%emt 0:01:54]} 38. Rxc5 {[%emt 0:00:33]} Ra3 {[%emt 0:02:39]} 39. Rc2 {[%emt 0:00:12] The position is equal.} Qb4 {[%emt 0:01:42]} 40. Qd2 {[%emt 0:01:04]} (40. Qc5 {simplifies} Qxc5+ 41. Rxc5 g5 42. h4) 40... Qb3 {[%emt 0:01:42]} 41. Rb2 {[%emt 0:00:16]} Qa4 {[%emt 0:00:28]} 42. Qb4 {[%emt 0:01:13]} Qa7+ {[%emt 0:01:21]} 43. Qb6 {[%emt 0:00:00]} Qe7 {[%emt 0:00:26]} 44. Qb4 {[%emt 0:00:44]} Qa7+ {[%emt 0:00:53]} 45. Qb6 {[%emt 0:00:01]} Qe7 {[%emt 0:00:23]} 46. Qb4 {[%emt 0:00:04]} Qa7+ {Weighted Error Value: White=0.13 (very precise) /Black=0.14 (very precise)   Loses game:     	White=1     	---        Missed win:     	---       	Black=1      Mistake:       	---       	Black=1      Inaccurate:     	White=4     	Black=1      OK:         	White=15    	Black=18     Best:        	White=2     	Black=1      Strong:       	---       	Black=1} 1/2-1/2

[Event "SixDays Budapest March GM B 2025"]
[Site "Budapest"]
[Date "2025.03.26"]
[Round "4.4"]
[White "Grover, Sahaj"]
[Black "Krishna C R G"]
[Result "0-1"]
[Annotator "TA"]
[ECO "A45"]
[WhiteElo "2469"]
[BlackElo "2418"]
[PlyCount "80"]
[EventDate "2025.03.23"]
[EventCountry "HUN"]
[SourceTitle "playchess.com"]
[Source "ChessBase"]
[SourceQuality "1"]
[TimeControl "5400+30"]

{[%evp 9,80,0,0,0,6,0,9,0,0,0,13,-7,5,10,16,13,32,14,9,13,23,14,26,15,24,28,31,33,27,31,34,31,72,62,54,50,58,68,79,68,81,45,58,64,56,0,51,29,33,33,38,0,0,0,24,0,98,97,84,89,77,83,113,0,127,7,14,12,9,3,-16,0,0]} 1. d4 {[%emt 0:00:03]} Nf6 {[%emt 0:02:27]} 2. Bf4 {[%emt 0:01:42]} e6 {[%emt 0:00:51]} 3. e3 {[%emt 0:00:08]} c5 {[%emt 0:01:06]} 4. Nf3 {[%emt 0:00:11]} Be7 {[%emt 0:01:01]} 5. h3 {[%emt 0:14:07]} O-O {[%emt 0:02:36]} 6. Be2 {[%emt 0:01:00] A46: 1 d4 Nf6 2 Nf3 e6: Torre, London and Colle Systems.} b6 {[%emt 0:00:42]} 7. O-O {[%emt 0:00:08]} Bb7 {[%emt 0:00:03]} 8. Nbd2 {[%emt 0:01:09]} Nc6 {[%emt 0:04:44]} 9. c3 {[%emt 0:00:34][%cal Bc2c3,Bc3d4][%mdl 32]} d6 {[%emt 0:10:58][%cal Bd7d6,Bd6d5][%mdl 32]} 10. Bh2 {[%emt 0:06:36]} Re8 {[%emt 0:04:07]} 11. a3 $146 {[%emt 0:11:03]} ({Predecessor:} 11. a4 a6 12. Bd3 Bf8 13. e4 e5 14. d5 Ne7 15. b4 Ng6 16. bxc5 bxc5 17. a5 {1-0 Tari,A (2635)-Rodgers,J (2043) Titled Tuesday intern op 13th Feb Late blitz 2024 (1)}) 11... Rc8 {[%emt 0:05:48]} 12. e4 {[%emt 0:04:15][%cal Be3e4,Be4e5][%mdl 32]} cxd4 {[%emt 0:18:48]} 13. cxd4 {[%emt 0:00:13]} d5 {[%emt 0:06:48]} 14. e5 {[%emt 0:00:12]} Ne4 {[%emt 0:00:08]} 15. Bd3 {[%emt 0:00:55]} Na5 {[%emt 0:00:48]} 16. Qe2 {[%emt 0:03:07]} Qd7 {[%emt 0:04:29]} 17. Nxe4 {[%emt 0:03:47]} dxe4 {[%emt 0:00:03]} 18. Bxe4 {[%emt 0:00:08]} Bxe4 {[%emt 0:09:44]} 19. Qxe4 {[%emt 0:00:03]} Nb3 {[%emt 0:00:33]} 20. Rad1 {[%emt 0:00:25]} Red8 {[%emt 0:00:15]} 21. Bf4 {[%emt 0:04:19]} h6 {[%emt 0:01:17]} 22. Rfe1 {[%emt 0:05:56][%cal Of4h6]} Qa4 {[%emt 0:03:57]} 23. Be3 {[%emt 0:10:56]} Rd5 {[%emt 0:01:23]} 24. Qg4 {[%emt 0:07:24]} Kf8 {[%emt 0:00:05]} 25. h4 {[%emt 0:03:27]} Rc4 {[%emt 0:07:11]} (25... Rc2 26. Qe4 Rc6 27. Qh7 $18) 26. Qe4 {[%emt 0:02:43]} Kg8 {[%emt 0:02:47] Against Qh7+} 27. Qg4 {[%emt 0:05:15]} (27. g3 $14) 27... Kh8 {[%emt 0:01:58]} (27... Kf8 $11) 28. Rd3 {[%emt 0:02:09][%cal Od3b3]} Nc5 {[%emt 0:01:32]} 29. Rd2 {[%emt 0:00:17]} Nb3 {[%emt 0:00:20]} 30. Rd3 {[%emt 0:03:07][%cal Od3b3] aiming for Rxb3!.} Nc5 {[%emt 0:00:33]} 31. Rdd1 $36 {[%emt 0:00:40][%mdl 2048] White has good play.} Nb3 {[%emt 0:00:24]} 32. Kh2 {[%emt 0:04:57]} Qd7 {[%emt 0:05:15]} (32... Bc5 $11) 33. Rd3 $16 {[%emt 0:00:48]} Nc5 {[%emt 0:00:19]} 34. Rc3 {[%emt 0:00:15]} (34. dxc5 $2 {too greedy.} Rxg4 35. Rxd5 Qxd5 $19) 34... Rxc3 {[%emt 0:00:01]} 35. bxc3 {[%emt 0:00:07]} Nd3 {[%emt 0:00:02][%csl LRa3,LRe1] [#]} 36. Rb1 {[%emt 0:03:11]} (36. Re2 $1 $16) 36... Qa4 {[%emt 0:02:08]} (36... Qc6 $1 $11) 37. Qh5 {[%emt 0:02:41]} (37. Qe4 $16 Qc2 38. c4 Rxd4 39. Bxd4 Qxb1 40. Qa8+ (40. Qb7 Bxa3 41. Qxa7 Bc5 $16) 40... Kh7 41. Qxa7) 37... Kg8 $1 $11 {[%emt 0:00:28] The position is equal.} 38. Nd2 {[%emt 0:00:27]} Qc2 {[%emt 0:03:16]} 39. Qd1 {[%emt 0:00:43]} Qxd1 {[%emt 0:00:34]} ({Reject} 39... Qxc3 $6 40. Rb3 Qc1 41. Qe2 Nxe5 42. dxe5 $16) 40. Rxd1 {[%emt 0:00:05]} Bxh4 {[%emt 0:00:29][%mdl 32768] Weighted Error Value: White=0.17 (very precise) /Black=0.16 (very precise)  Loss on time!?  Mistake:       	White=3     	Black=3      Inaccurate:     	White=1     	Black=2      OK:         	White=12    	Black=14     Best:        	White=2     	Black=1      Strong:       	---       	Black=1} 0-1

[Event "SixDays Budapest March GM B 2025"]
[Site "Budapest"]
[Date "2025.03.26"]
[Round "4.5"]
[White "Mirzoev, Azer"]
[Black "Nemeth, Zalan"]
[Result "1/2-1/2"]
[Annotator "TA"]
[ECO "D02"]
[WhiteElo "2470"]
[BlackElo "2341"]
[PlyCount "32"]
[EventDate "2025.03.23"]
[EventCountry "HUN"]
[SourceTitle "playchess.com"]
[Source "ChessBase"]
[SourceQuality "1"]
[TimeControl "5400+30"]

{[%evp 21,32,7,11,-13,-10,-13,-11,-12,-9,-12,-7,-7,0]} 1. d4 {[%emt 0:07:00]} d5 {[%emt 0:00:05]} 2. Nf3 {[%emt 0:00:05]} Nf6 {[%emt 0:00:05]} 3. c4 {[%emt 0:00:03]} e6 {[%emt 0:00:05]} 4. g3 {[%emt 0:00:19]} dxc4 {[%emt 0:00:25]} 5. Qa4+ {[%emt 0:00:09]} Nbd7 {[%emt 0:00:58]} 6. Bg2 {[%emt 0:00:10]} a6 {[%emt 0:00:32]} 7. Qxc4 {[%emt 0:00:06]} b5 {[%emt 0:01:05]} 8. Qc6 {[%emt 0:00:06]} Rb8 {[%emt 0:00:13]} 9. Bf4 {[%emt 0:01:49]} Nd5 {[%emt 0:04:37]} 10. Bg5 {[%emt 0:00:28]} Be7 {[%emt 0:00:07]} 11. Bxe7 {[%emt 0:10:32]} Qxe7 {[%emt 0:00:05] The position is equal.} 12. Nbd2 {[%emt 0:19:07] E03: Open Catalan: 5 Qa4+ Nbd7 6 Qxc4.} Bb7 {[%emt 0:00:13]} 13. Qc2 {[%emt 0:00:52]} c5 {[%emt 0:00:58]} 14. O-O {[%emt 0:01:40]} O-O {[%emt 0:00:50]} 15. dxc5 {[%emt 0:00:04]} Nxc5 {[%emt 0:01:15]} 16. Nb3 {[%emt 0:00:07]} Nxb3 $146 {[%emt 0:00:58] A rather calm draw.   Weighted Error Value: White=0.05 (flawless) /Black=0.01 (flawless)   OK:         	White=2     	Black=2} (16... Na4 17. Rad1 Rbc8 18. Qb1 Rc7 19. Rc1 Rfc8 20. Rxc7 Rxc7 21. Rc1 Nf6 22. Ne5 Bxg2 23. Kxg2 g6 24. Nd4 Rxc1 {½-½ Mellado Trivino,J (2413)-Perez Candelario,M (2537) Andorra op 26th 2008 (4)}) 1/2-1/2